bitfinex-derivatives/quotes_BTCF0:USTF0_20250710
["timestamp","ask_amount","ask_price","bid_price","bid_amount"]
[1752148183497,1.45167317,111150.0,111140.0,0.1205803]
[1752148184102,1.37070748,111150.0,111140.0,0.1205803]
[1752148185803,1.73150748,111150.0,111140.0,0.1205803]
[1752148185999,1.76290748,111150.0,111140.0,0.1205803]
[1752148186202,1.79580748,111150.0,111140.0,0.1205803]
[1752148188996,1.39660045,111150.0,111140.0,0.1205803]
[1752148189194,1.63668681,111150.0,111140.0,0.1205803]
[1752148190813,1.55572112,111150.0,111140.0,0.1205803]
[1752148193204,1.19492112,111150.0,111140.0,0.1205803]
[1752148193404,1.55572112,111150.0,111140.0,0.1205803]
[1752148193915,1.63668681,111150.0,111140.0,0.1205803]
[1752148197219,1.63671791,111150.0,111140.0,0.300471]
[1752148197516,1.63671791,111150.0,111140.0,0.1205803]
[1752148199811,1.63671791,111150.0,111140.0,0.10658]
[1752148202620,1.87680427,111150.0,111140.0,0.10658]
[1752148206524,1.63671791,111150.0,111140.0,0.10658]
[1752148206723,1.87680427,111150.0,111140.0,0.10658]
[1752148208224,1.87680427,111150.0,111140.0,0.07498]
[1752148208727,1.63671791,111150.0,111140.0,0.07498]
[1752148209427,1.63671791,111150.0,111140.0,0.04298]
[1752148210225,1.87680427,111150.0,111140.0,0.04298]
[1752148211124,1.87680427,111150.0,111140.0,0.003]
[1752148213126,1.26572427,111150.0,111140.0,0.003]
[1752148214226,1.02563791,111150.0,111140.0,0.003]
[1752148214428,1.63659791,111150.0,111140.0,0.003]
[1752148214829,1.63659791,111150.0,111140.0,0.02678]
[1752148219128,1.39651155,111150.0,111140.0,0.02678]
[1752148219334,1.63659791,111150.0,111140.0,0.2066707]
[1752148228642,1.39651155,111150.0,111140.0,0.22063418]
[1752148228844,1.63659791,111150.0,111140.0,0.22063418]
[1752148229144,1.39651155,111150.0,111140.0,0.22063418]
[1752148229346,1.02563791,111150.0,111140.0,0.22063418]
[1752148229536,1.01652955,111150.0,111140.0,0.22063418]
[1752148229845,0.65572955,111150.0,111140.0,0.52698706]
[1752148230044,0.65572955,111150.0,111140.0,0.30086409]
[1752148230542,0.65572955,111150.0,111140.0,0.54095045]
[1752148231647,0.65572955,111150.0,111140.0,0.30086409]
[1752148233651,0.66456201,111150.0,111140.0,0.30086409]
[1752148237156,0.65572955,111150.0,111140.0,0.30086409]
[1752148238963,0.41564319,111150.0,111140.0,0.30086409]
[1752148239153,0.65572955,111150.0,111140.0,0.30086409]
[1752148241756,0.65572955,111150.0,111140.0,0.30088878]
[1752148244661,0.65579982,111150.0,111140.0,0.30088878]
[1752148245754,0.65579982,111150.0,111140.0,0.12099808]
[1752148248156,0.63680541,111150.0,111140.0,0.30088878]
[1752148249167,0.65546489,111150.0,111140.0,0.30088878]
[1752148250163,1.1862192,111150.0,111140.0,0.30088878]
[1752148250764,1.1862192,111150.0,111140.0,0.30088946]
[1752148254267,0.94613284,111150.0,111140.0,0.30088946]
[1752148254567,1.1862192,111150.0,111140.0,0.30088946]
[1752148255168,1.26718489,111150.0,111140.0,0.30088946]
[1752148260163,1.26718489,111150.0,111140.0,0.12099876]
[1752148260563,1.86807125,111150.0,111140.0,0.03341876]
[1752148260763,1.86807125,111150.0,111140.0,0.01698876]
[1752148261570,1.86807125,111150.0,111140.0,0.01706265]
[1752148262366,0.1799069,111130.0,111120.0,0.40250206]
[1752148262566,0.1799069,111130.0,111120.0,0.05576557]
[1752148262567,0.73126798,111130.0,111120.0,0.05576557]
[1752148262769,1.40826798,111130.0,111120.0,0.23568867]
[1752148262969,1.16818162,111130.0,111120.0,0.05576557]
[1752148263170,0.79606798,111130.0,111120.0,0.05576557]
[1752148263368,0.87703367,111130.0,111120.0,0.05576557]
[1752148264568,0.63694731,111130.0,111120.0,0.06901653]
[1752148264873,0.63694731,111130.0,111120.0,0.07301653]
[1752148265373,0.55598162,111130.0,111120.0,0.07301653]
[1752148266374,0.79606798,111130.0,111120.0,0.07301653]
[1752148267074,0.79606798,111130.0,111120.0,0.05593425]
[1752148267275,0.79606798,111130.0,111120.0,0.05993425]
[1752148270280,0.55598162,111130.0,111120.0,0.05993425]
[1752148270478,0.55598162,111130.0,111120.0,0.04587074]
[1752148271579,0.91678162,111130.0,111120.0,0.04587074]
[1752148272278,0.91678162,111130.0,111120.0,0.03261978]
[1752148274475,0.91678162,111130.0,111120.0,0.04664725]
[1752148277186,0.55598162,111130.0,111120.0,0.04664725]
[1752148277684,0.31589526,111130.0,111120.0,0.04664725]
[1752148277876,0.55598162,111130.0,111120.0,0.04664725]
[1752148283477,0.55555376,111130.0,111120.0,0.04664725]
[1752148283989,0.55555376,111130.0,111120.0,0.03261978]
[1752148285185,0.55555376,111130.0,111120.0,0.04664879]
[1752148287796,0.55555376,111130.0,111120.0,0.02382879]
[1752148289397,0.52255376,111130.0,111120.0,0.30587189]
[1752148290296,0.52255376,111130.0,111120.0,0.29184288]
[1752148290798,0.2824674,111130.0,111120.0,0.29184288]
[1752148290986,0.52255376,111130.0,111120.0,0.29184288]
[1752148293192,0.52255376,111130.0,111120.0,0.11191978]
[1752148293395,0.55555376,111130.0,111120.0,0.11191978]
[1752148296099,0.55555376,111130.0,111120.0,0.05041978]
[1752148296401,0.55555376,111130.0,111120.0,0.03461978]
[1752148299100,0.3154674,111130.0,111120.0,0.21454288]
[1752148299296,0.63651945,111130.0,111120.0,0.21454288]
[1752148299808,0.63651945,111130.0,111120.0,0.03461978]
[1752148302502,0.63651945,111130.0,111120.0,0.00979978]
[1752148302802,0.87660581,111130.0,111120.0,0.00979978]
[1752148303001,0.63651945,111130.0,111120.0,0.00979978]
[1752148304704,0.70818995,111130.0,111120.0,0.00979978]
[1752148305108,0.63651945,111130.0,111120.0,0.00979978]
[1752148309908,0.70673538,111130.0,111120.0,0.00979978]
[1752148310407,0.70673538,111130.0,111120.0,0.03461978]
[1752148313507,0.46664902,111130.0,111120.0,0.21454288]
[1752148313707,0.46664902,111130.0,111120.0,0.45462924]
[1752148313908,0.70673538,111130.0,111120.0,0.47042924]
[1752148314110,0.70673538,111130.0,111120.0,0.23034288]
[1752148317014,0.70673538,111130.0,111120.0,0.05041978]
[1752148318412,0.70673538,111130.0,111120.0,0.03461978]
[1752148320815,0.94682174,111130.0,111120.0,0.03461978]
[1752148322117,0.94682174,111130.0,111120.0,0.00979978]
[1752148327722,1.30762174,111130.0,111120.0,0.02305692]
[1752148330320,1.30762174,111130.0,111120.0,0.01905692]
[1752148330520,1.30762174,111130.0,111120.0,0.02005692]
[1752148334721,1.30762174,111130.0,111120.0,0.02005069]
[1752148335227,1.30762174,111130.0,111120.0,0.01605069]
[1752148335419,1.30762174,111130.0,111120.0,0.01705069]
[1752148337625,1.30762174,111130.0,111120.0,0.0170579]
[1752148339026,1.30762174,111130.0,111120.0,0.0160579]
[1752148339525,1.30762174,111130.0,111120.0,0.0150579]
[1752148339728,1.30862174,111130.0,111120.0,0.0150579]
[1752148345124,1.27661124,111130.0,111120.0,0.0150579]
[1752148345331,1.30852538,111130.0,111120.0,0.0150579]
[1752148345530,1.30852538,111130.0,111120.0,0.01506609]
[1752148349432,1.22755969,111130.0,111120.0,0.01506609]
[1752148350328,1.33545409,111130.0,111120.0,0.01506609]
[1752148350730,0.1799231,111120.0,111110.0,0.00179994]
[1752148350931,1.84919821,111120.0,111110.0,0.00179994]
[1752148351632,1.86763034,111120.0,111110.0,0.00179994]
[1752148351837,1.86763034,111120.0,111110.0,0.00279994]
[1752148352233,1.86763034,111120.0,111110.0,0.00379994]
[1752148354439,1.84919821,111120.0,111110.0,0.00379994]
[1752148354738,1.88970063,111120.0,111110.0,0.03639994]
[1752148355341,1.89884928,111120.0,111110.0,0.03639994]
[1752148358235,1.53804928,111120.0,111110.0,0.03639994]
[1752148358441,1.89884928,111120.0,111110.0,0.03639994]
[1752148359529,1.81805103,111120.0,111110.0,0.03639994]
[1752148360943,1.81805103,111120.0,111110.0,0.03646249]
[1752148362833,1.81805103,111120.0,111110.0,0.0496905]
[1752148364542,1.45725103,111120.0,111110.0,0.0496905]
[1752148364839,1.81805103,111120.0,111110.0,0.0496905]
[1752148365238,1.33787831,111120.0,111110.0,0.0496905]
[1752148365543,1.81805103,111120.0,111110.0,0.0725505]
[1752148365739,1.81805103,111120.0,111110.0,0.1042505]
[1752148366137,0.66237831,111120.0,111110.0,0.54061616]
[1752148366340,1.48151602,111120.0,111110.0,0.52738815]
[1752148366535,1.50547602,111120.0,111110.0,0.52738815]
[1752148367340,1.74556238,111120.0,111110.0,0.52738815]
[1752148367542,1.74556238,111120.0,111110.0,0.34744885]
[1752148367731,1.74556238,111120.0,111110.0,0.10736249]
[1752148368545,0.65322966,111120.0,111110.0,0.10736249]
[1752148368740,1.75452223,111120.0,111110.0,0.10736249]
[1752148369845,1.74548238,111120.0,111110.0,0.10736249]
[1752148371543,1.38468238,111120.0,111110.0,0.10736249]
[1752148371748,1.74548238,111120.0,111110.0,0.10736249]
[1752148372450,1.75442789,111120.0,111110.0,0.10736249]
[1752148373750,1.75433363,111120.0,111110.0,0.10736249]
[1752148378256,1.75433363,111120.0,111110.0,0.28730179]
[1752148379054,1.74538812,111120.0,111110.0,0.28730179]
[1752148381351,1.74538812,111120.0,111110.0,0.10736249]
[1752148381656,1.74538812,111120.0,111110.0,0.28730179]
[1752148382362,1.13330812,111120.0,111110.0,0.28730179]
[1752148382549,1.74498812,111120.0,111110.0,0.28730179]
[1752148384660,1.74498812,111120.0,111110.0,0.10736249]
[1752148385052,1.80716812,111120.0,111110.0,0.10736249]
[1752148387058,1.80716812,111120.0,111110.0,0.12061106]
[1752148387261,1.19560812,111120.0,111110.0,0.12061106]
[1752148387447,1.80732812,111120.0,111110.0,0.07476249]
[1752148389554,1.44652812,111120.0,111110.0,0.07476249]
[1752148389747,1.80732812,111120.0,111110.0,0.07476249]
[1752148390353,1.80720812,111120.0,111110.0,0.07476249]
[1752148391867,1.44640812,111120.0,111110.0,0.07476249]
[1752148392163,1.80720812,111120.0,111110.0,0.07476249]
[1752148392355,1.19560812,111120.0,111110.0,0.07476249]
[1752148392664,1.80716812,111120.0,111110.0,0.07476249]
[1752148393161,1.19560812,111120.0,111110.0,0.07476249]
[1752148393361,1.80716812,111120.0,111110.0,0.07476249]
[1752148394367,1.44636812,111120.0,111110.0,0.07476249]
[1752148394656,1.80716812,111120.0,111110.0,0.07476249]
[1752148394855,1.80716812,111120.0,111110.0,0.04306249]
[1752148396353,1.44636812,111120.0,111110.0,0.04306249]
[1752148396658,1.80716812,111120.0,111110.0,0.04306249]
[1752148397064,1.80716812,111120.0,111110.0,0.02672249]
[1752148397561,1.80716812,111120.0,111110.0,0.01711069]
[1752148397964,1.88796637,111120.0,111110.0,0.01711069]
[1752148399555,1.88796637,111120.0,111110.0,0.01713107]
[1752148402662,1.27640637,111120.0,111110.0,0.01713107]
[1752148402961,1.88796637,111120.0,111110.0,0.01713107]
[1752148404266,1.52716637,111120.0,111110.0,0.01713107]
[1752148404458,1.88796637,111120.0,111110.0,0.01713107]
[1752148405168,1.88796637,111120.0,111110.0,0.00386249]
[1752148408969,0.1799392,111110.0,111100.0,0.03381]
[1752148409176,1.23713642,111110.0,111100.0,0.02412233]
[1752148409364,1.1563418,111110.0,111100.0,0.02412233]
[1752148409564,1.17792679,111110.0,111100.0,0.02412233]
[1752148410069,1.25872141,111110.0,111100.0,0.01288]
[1752148410265,1.25872141,111110.0,111100.0,0.01588]
[1752148412760,1.17792679,111110.0,111100.0,0.02926305]
[1752148412965,1.25872141,111110.0,111100.0,0.02926305]
[1752148414475,1.17792679,111110.0,111100.0,0.02926305]
[1752148415166,1.25872141,111110.0,111100.0,0.02926305]
[1752148415966,1.25872141,111110.0,111100.0,0.01588]
[1752148417570,1.25872141,111110.0,111100.0,0.02930493]
[1752148417874,1.25872141,111110.0,111100.0,0.01588]
[1752148418073,0.1799717,111090.0,111080.0,0.28627571]
[1752148418275,1.44532794,111090.0,111080.0,0.31478868]
[1752148418574,1.46691293,111090.0,111080.0,0.31478868]
[1752148419374,1.46691293,111090.0,111080.0,0.31978868]
[1752148419876,1.22682657,111090.0,111080.0,0.31978868]
[1752148420175,1.22682657,111090.0,111080.0,0.32378868]
[1752148420367,1.46691293,111090.0,111080.0,0.32378434]
[1752148421569,1.47608744,111090.0,111080.0,0.32378434]
[1752148421770,1.11528744,111090.0,111080.0,0.14379694]
[1752148423274,1.47608744,111090.0,111080.0,0.14379694]
[1752148423579,1.47608744,111090.0,111080.0,0.14380181]
[1752148424780,1.47696518,111090.0,111080.0,0.14380181]
[1752148425980,1.47696518,111090.0,111080.0,0.13980181]
[1752148426180,1.47696518,111090.0,111080.0,0.14280181]
[1752148426374,1.47696518,111090.0,111080.0,0.13780181]
[1752148426581,1.47696518,111090.0,111080.0,0.13980181]
[1752148426781,1.53976518,111090.0,111080.0,0.13980181]
[1752148428583,1.53976518,111090.0,111080.0,0.12290392]
[1752148429390,1.17896518,111090.0,111080.0,0.12290392]
[1752148429582,1.53976518,111090.0,111080.0,0.12290392]
[1752148435081,1.53976518,111090.0,111080.0,0.10948042]
[1752148435277,1.53976518,111090.0,111080.0,0.12274562]
[1752148435476,1.54000483,111090.0,111080.0,0.12274562]
[1752148436280,1.50820483,111090.0,111080.0,0.05934562]
[1752148436479,1.53900483,111090.0,111080.0,0.05934562]
[1752148437879,1.53900483,111090.0,111080.0,0.09184562]
[1752148439582,1.53900483,111090.0,111080.0,0.12454562]
[1752148440790,1.53900483,111090.0,111080.0,0.11128042]
[1752148441090,1.53900483,111090.0,111080.0,0.12451675]
[1752148443290,1.61979945,111090.0,111080.0,0.12451675]
[1752148444296,1.50606756,111090.0,111080.0,0.12451675]
[1752148445789,1.14526756,111090.0,111080.0,0.12451675]
[1752148446086,1.61980439,111090.0,111080.0,0.12451675]
[1752148448299,1.53904855,111090.0,111080.0,0.05931675]
[1752148449191,1.77913491,111090.0,111080.0,0.02003675]
[1752148449386,2.13993491,111090.0,111080.0,0.02003675]
[1752148449590,2.22069075,111090.0,111080.0,0.02003675]
[1752148449792,1.60905075,111090.0,111080.0,0.02003675]
[1752148449996,1.98068439,111090.0,111080.0,0.04219675]
[1752148450297,2.22089075,111090.0,111080.0,0.01803675]
[1752148450600,2.14029491,111090.0,111080.0,0.01803675]
[1752148450891,2.22105075,111090.0,111080.0,0.01803675]
[1752148451401,2.14029491,111090.0,111080.0,0.01803675]
[1752148451698,2.14029491,111090.0,111080.0,0.01703675]
[1752148451901,2.14029491,111090.0,111080.0,0.01603675]
[1752148452287,2.14129491,111090.0,111080.0,0.03919675]
[1752148453004,2.22205075,111090.0,111080.0,0.03919675]
[1752148453500,2.22205075,111090.0,111080.0,0.05542675]
[1752148454701,1.74187803,111090.0,111080.0,0.05542675]
[1752148454904,2.22205075,111090.0,111080.0,0.05542675]
[1752148455400,2.22205075,111090.0,111080.0,0.04219042]
[1752148457604,2.22205075,111090.0,111080.0,0.05553791]
[1752148458699,2.22205075,111090.0,111080.0,0.04219042]
[1752148458905,2.22205075,111090.0,111080.0,0.0555376]
[1752148458906,2.14129491,111090.0,111080.0,0.0555376]
[1752148459498,2.22205075,111090.0,111080.0,0.0555376]
[1752148459802,2.14129491,111090.0,111080.0,0.0555376]
[1752148460203,2.22205075,111090.0,111080.0,0.0555376]
[1752148461606,2.22205075,111090.0,111080.0,0.04219042]
[1752148463906,1.98196439,111090.0,111080.0,0.04219042]
[1752148464101,2.22205075,111090.0,111080.0,0.07329042]
[1752148464907,2.22205075,111090.0,111080.0,0.08659482]
[1752148468211,2.22205075,111090.0,111080.0,0.03926482]
[1752148469415,2.14129491,111090.0,111080.0,0.03926482]
[1752148474011,1.78049491,111090.0,111080.0,0.03926482]
[1752148474210,1.86125075,111090.0,111080.0,0.03926482]
[1752148477415,1.78049491,111090.0,111080.0,0.03926482]
[1752148481824,1.88816937,111090.0,111080.0,0.03926482]
[1752148482524,1.78049491,111090.0,111080.0,0.03926482]
[1752148482821,1.88816937,111090.0,111080.0,0.03926482]
[1752148483621,1.78049491,111090.0,111080.0,0.03926482]
[1752148485225,1.78049491,111090.0,111080.0,0.03932203]
[1752148488526,1.41969491,111090.0,111080.0,0.03932203]
[1752148488727,1.78049491,111090.0,111080.0,0.03932203]
[1752148489529,1.86129733,111090.0,111080.0,0.03932203]
[1752148490329,1.50049733,111090.0,111080.0,0.03932203]
[1752148490626,1.86129733,111090.0,111080.0,0.03932203]
[1752148491126,1.88816937,111090.0,111080.0,0.03932203]
[1752148493133,1.40799665,111090.0,111080.0,0.03932203]
[1752148493428,1.88816937,111090.0,111080.0,0.03932203]
[1752148493729,1.78049491,111090.0,111080.0,0.03932203]
[1752148494127,1.79955593,111090.0,111080.0,0.03932203]
[1752148495725,1.90723039,111090.0,111080.0,0.03932203]
[1752148497630,1.90696013,111090.0,111080.0,0.03932203]
[1752148499237,1.54616013,111090.0,111080.0,0.03932203]
[1752148499431,1.88012618,111090.0,111080.0,0.03932203]
[1752148499637,1.90696013,111090.0,111080.0,0.03932203]
[1752148501837,1.90696013,111090.0,111080.0,0.03933555]
[1752148502838,1.29496013,111090.0,111080.0,0.03933555]
[1752148503032,1.90772013,111090.0,111080.0,0.03933555]
[1752148503638,1.80004567,111090.0,111080.0,0.03933555]
[1752148504741,1.80004567,111090.0,111080.0,0.05550555]
[1752148504941,1.80004567,111090.0,111080.0,0.0555]
[1752148508650,1.88089893,111090.0,111080.0,0.0884]
[1752148509152,1.88089893,111090.0,111080.0,0.1197]
[1752148511946,1.88089893,111090.0,111080.0,0.03933]
[1752148512354,1.88089893,111090.0,111080.0,0.05327265]
[1752148513752,1.80004567,111090.0,111080.0,0.05327265]
[1752148514556,1.88089524,111090.0,111080.0,0.05327265]
[1752148516355,1.80004567,111090.0,111080.0,0.02911265]
[1752148516955,1.80004567,111090.0,111080.0,0.02911775]
[1752148517448,1.79984567,111090.0,111080.0,0.02911775]
[1752148518654,1.88069524,111090.0,111080.0,0.02911775]
[1752148520157,1.79984567,111090.0,111080.0,0.02911877]
[1752148520454,1.79980567,111090.0,111080.0,0.01517371]
[1752148521751,1.79980567,111090.0,111080.0,0.02911874]
[1752148523155,2.03989203,111090.0,111070.0,0.00180059]
[1752148523359,1.40449415,111080.0,111070.0,0.02916026]
[1752148523549,1.44555514,111080.0,111070.0,0.02916026]
[1752148523748,1.46714013,111080.0,111070.0,0.02916026]
[1752148524455,1.38629286,111080.0,111070.0,0.03016026]
[1752148524859,1.38629286,111080.0,111070.0,0.03116026]
[1752148525461,1.38629286,111080.0,111070.0,0.03016026]
[1752148525655,1.38629286,111080.0,111070.0,0.03116026]
[1752148528255,1.46714013,111080.0,111070.0,0.02308026]
[1752148528960,1.46714013,111080.0,111070.0,0.01540986]
[1752148529350,0.1800202,111060.0,111050.0,0.0638]
[1752148529647,0.1800364,111050.0,111040.0,0.33174418]
[1752148529845,0.76635292,111050.0,111040.0,0.33502118]
[1752148530052,0.52626656,111050.0,111040.0,0.36602118]
[1752148530252,0.2861802,111050.0,111040.0,0.36602118]
[1752148530452,0.52626656,111050.0,111040.0,0.36602118]
[1752148530759,0.54785155,111050.0,111040.0,0.36602118]
[1752148530957,0.30776519,111050.0,111040.0,0.36602118]
[1752148531159,0.30776519,111050.0,111040.0,0.60610754]
[1752148531460,0.54785155,111050.0,111040.0,0.60710754]
[1752148532064,0.54785155,111050.0,111040.0,0.52612763]
[1752148532959,0.54785155,111050.0,111040.0,0.28604127]
[1752148534163,0.54785155,111050.0,111040.0,0.64684127]
[1752148534461,0.30776519,111050.0,111040.0,0.88692763]
[1752148534667,0.30776519,111050.0,111040.0,1.12701399]
[1752148535763,0.54785155,111050.0,111040.0,1.12701399]
[1752148536366,0.30776519,111050.0,111040.0,1.12701399]
[1752148536559,0.30776519,111050.0,111040.0,1.30711799]
[1752148536960,0.2250408,111060.0,111050.0,0.1800364]
[1752148537163,0.2250408,111060.0,111050.0,0.88241276]
[1752148537467,0.2250408,111060.0,111050.0,1.50357276]
[1752148538370,0.2260408,111060.0,111050.0,1.50357276]
[1752148538666,0.53677085,111060.0,111050.0,1.50357276]
[1752148541268,0.53677085,111060.0,111050.0,1.51678503]
[1752148543068,0.53677085,111060.0,111050.0,1.27669867]
[1752148543273,0.53677085,111060.0,111050.0,1.51678503]
[1752148543570,0.53677085,111060.0,111050.0,1.51679696]
[1752148543870,0.53677085,111060.0,111050.0,1.2767106]
[1752148544070,0.53677085,111060.0,111050.0,1.51679696]
[1752148545171,0.53677085,111060.0,111050.0,1.2767106]
[1752148545365,0.53677085,111060.0,111050.0,1.51679696]
[1752148545868,0.53677085,111060.0,111050.0,1.2767106]
[1752148546069,0.53677085,111060.0,111050.0,1.51679696]
[1752148547166,0.53677085,111060.0,111050.0,1.2767106]
[1752148547366,0.53677085,111060.0,111050.0,1.51679696]
[1752148547574,1.01694357,111060.0,111050.0,0.2171606]
[1752148547872,1.01694357,111060.0,111050.0,0.2326506]
[1752148547873,0.84095721,111060.0,111050.0,0.2326506]
[1752148548066,0.84095721,111060.0,111050.0,0.2959506]
[1752148548273,0.81005721,111060.0,111050.0,0.6567506]
[1752148548472,0.81005721,111060.0,111050.0,1.2785906]
[1752148548873,0.81005721,111060.0,111050.0,0.2959506]
[1752148549070,1.2033931,111060.0,111050.0,0.7377542]
[1752148549566,1.2033931,111060.0,111050.0,0.9177906]
[1752148550376,1.2350931,111060.0,111050.0,0.9177906]
[1752148551573,0.61937669,111060.0,111050.0,1.15787696]
[1752148551766,0.1800053,111070.0,111060.0,0.1800202]
[1752148551970,0.46509276,111070.0,111060.0,1.12518292]
[1752148552468,0.46509276,111070.0,111060.0,0.88509656]
[1752148552877,0.46609276,111070.0,111060.0,0.88509656]
[1752148553471,0.46909276,111070.0,111060.0,0.88509656]
[1752148554779,0.2290064,111070.0,111060.0,0.6450102]
[1752148563288,0.24757704,111070.0,111060.0,0.6450102]
[1752148563787,0.28212113,111070.0,111060.0,0.6450102]
[1752148563985,0.28212113,111070.0,111060.0,0.88582145]
[1752148564181,0.28212113,111070.0,111060.0,0.6450102]
[1752148564379,0.28212113,111070.0,111060.0,0.88582145]
[1752148564578,0.28212113,111070.0,111060.0,0.6450102]
[1752148566388,0.26355049,111070.0,111060.0,0.6450102]
[1752148566581,0.26355049,111070.0,111060.0,0.88582145]
[1752148568087,0.26355049,111070.0,111060.0,0.6450102]
[1752148573889,0.26355049,111070.0,111060.0,0.2842102]
[1752148574093,0.26355049,111070.0,111060.0,0.6450102]
[1752148574895,0.50436259,111070.0,111060.0,0.8858223]
[1752148575194,0.50436259,111070.0,111060.0,0.6450102]
[1752148575491,0.50436259,111070.0,111060.0,0.8858223]
[1752148576194,0.26355049,111070.0,111060.0,0.8858223]
[1752148576492,0.50436259,111070.0,111060.0,0.8858223]
[1752148581385,0.58520986,111070.0,111060.0,0.8858223]
[1752148581898,0.50436259,111070.0,111060.0,0.8858223]
[1752148584800,0.50436259,111070.0,111060.0,0.6450102]
[1752148584995,0.50436259,111070.0,111060.0,0.8858223]
[1752148585194,0.50436259,111070.0,111060.0,0.95903616]
[1752148587107,0.50436259,111070.0,111060.0,0.8858223]
[1752148590307,0.50436259,111070.0,111060.0,0.5250223]
[1752148590510,0.50436259,111070.0,111060.0,0.8858223]
[1752148595609,0.50436259,111070.0,111060.0,0.6450102]
[1752148595809,0.50436259,111070.0,111060.0,0.8858223]
[1752148597612,0.26355049,111070.0,111060.0,0.8858223]
[1752148597813,0.50436259,111070.0,111060.0,0.8858223]
[1752148600308,0.50436259,111070.0,111060.0,0.95841662]
[1752148605314,0.03854409,111070.0,111060.0,1.19922872]
[1752148605618,0.21854809,111070.0,111060.0,1.19922872]
[1752148606014,0.03854409,111070.0,111060.0,1.19922872]
[1752148606214,0.21854809,111070.0,111060.0,1.19922872]
[1752148609318,0.03854409,111070.0,111060.0,1.19922872]
[1752148619127,0.6202838,111090.0,111080.0,0.1799877]
[1752148619328,0.3344756,111090.0,111080.0,1.45561169]
[1752148619523,0.37032707,111090.0,111080.0,1.69642379]
[1752148619926,0.37032707,111090.0,111080.0,1.72922379]
[1752148620221,0.32933337,111090.0,111080.0,1.76072379]
[1752148620535,0.33233337,111090.0,111080.0,1.76072379]
[1752148620724,0.2514861,111090.0,111080.0,1.76072379]
[1752148621235,0.2514861,111090.0,111080.0,1.51991169]
[1752148621440,0.4922982,111090.0,111080.0,1.51991169]
[1752148621633,0.4882982,111090.0,111080.0,1.51991169]
[1752148621833,0.4892982,111090.0,111080.0,1.51991169]
[1752148622535,0.4892982,111090.0,111080.0,1.52887451]
[1752148623338,0.004,111090.0,111080.0,1.76968661]
[1752148624035,0.1839715,111090.0,111080.0,1.76968661]
[1752148625335,0.004,111090.0,111080.0,1.76968661]
[1752148626236,0.2896578,111100.0,111090.0,0.1799715]
[1752148626438,0.2896578,111100.0,111090.0,0.8463836]
[1752148627434,0.5304699,111100.0,111090.0,0.8463836]
[1752148627641,0.5334699,111100.0,111090.0,0.8463836]
[1752148627842,0.5354699,111100.0,111090.0,0.8463836]
[1752148630645,0.5354699,111100.0,111090.0,0.8850436]
[1752148630846,0.2946578,111100.0,111090.0,0.8850436]
[1752148631041,0.5354699,111100.0,111090.0,0.8850436]
[1752148631243,0.56897239,111100.0,111090.0,0.8850436]
[1752148632136,0.32816029,111100.0,111090.0,0.8850436]
[1752148632339,0.56897239,111100.0,111090.0,0.8850436]
[1752148634447,0.56897239,111100.0,111090.0,0.6442315]
[1752148634840,0.56897239,111100.0,111090.0,0.8202436]
[1752148636440,0.56897239,111100.0,111090.0,0.5794315]
[1752148636642,0.56897239,111100.0,111090.0,0.8202436]
[1752148646647,0.32816029,111100.0,111090.0,0.8202436]
[1752148646947,0.56897239,111100.0,111090.0,0.8202436]
[1752148648455,0.56897239,111100.0,111090.0,0.5794315]
[1752148648647,0.56897239,111100.0,111090.0,0.8202436]
[1752148652054,0.56897239,111100.0,111090.0,0.8521436]
[1752148655658,0.56897239,111100.0,111090.0,0.8134836]
[1752148656059,0.56897239,111100.0,111090.0,0.8525436]
[1752148657056,0.56897239,111100.0,111090.0,0.8833436]
[1752148659455,0.64981966,111100.0,111090.0,0.8833436]
[1752148659851,0.11934976,111100.0,111090.0,0.8833436]
[1752148660165,0.21845779,111100.0,111090.0,0.6425315]
[1752148660664,0.54011716,111100.0,111090.0,0.8833436]
[1752148661068,0.54011716,111100.0,111090.0,0.6425315]
[1752148661257,0.54011716,111100.0,111090.0,0.8833436]
[1752148661566,0.54011716,111100.0,111090.0,0.8593336]
[1752148661750,0.54011716,111100.0,111090.0,0.8833436]
[1752148665363,0.50661467,111100.0,111090.0,0.8833436]
[1752148665565,0.53987312,111100.0,111090.0,0.8833436]
[1752148666567,0.29906102,111100.0,111090.0,0.8833436]
[1752148666757,0.53987312,111100.0,111090.0,0.8833436]
[1752148666959,0.29906102,111100.0,111090.0,0.8833436]
[1752148667157,0.53987312,111100.0,111090.0,0.8833436]
[1752148667559,0.45902585,111100.0,111090.0,0.8833436]
[1752148668470,0.45902585,111100.0,111090.0,0.5225436]
[1752148668659,0.45902585,111100.0,111090.0,0.8833436]
[1752148671071,0.45902585,111100.0,111090.0,0.6425315]
[1752148671365,0.45902585,111100.0,111090.0,0.8833436]
[1752148672066,0.21821375,111100.0,111090.0,0.8833436]
[1752148677175,0.03825845,111100.0,111090.0,0.8833436]
[1752148679072,0.03825845,111100.0,111090.0,1.1241557]
[1752148679777,0.03825845,111100.0,111090.0,0.8833436]
[1752148682178,0.03825845,111100.0,111090.0,0.6425315]
[1752148682379,0.03825845,111100.0,111090.0,0.8833436]
[1752148683878,0.21821375,111100.0,111090.0,0.8833436]
[1752148685178,0.21821375,111100.0,111090.0,0.6425315]
[1752148685378,0.21821375,111100.0,111090.0,0.8833436]
[1752148687275,0.21821375,111100.0,111090.0,0.5225436]
[1752148687472,0.45902585,111100.0,111090.0,0.8833436]
[1752148690883,0.49192585,111100.0,111090.0,0.8833436]
[1752148702587,0.49192585,111100.0,111090.0,0.5225436]
[1752148702792,0.49192585,111100.0,111090.0,0.8833436]
[1752148705388,0.49192585,111100.0,111090.0,0.5225436]
[1752148705594,0.49192585,111100.0,111090.0,0.8833436]
[1752148706298,0.76383795,111100.0,111090.0,0.2190315]
[1752148706596,0.76383795,111100.0,111090.0,0.8355915]
[1752148706996,0.84357278,111100.0,111090.0,0.8355915]
[1752148707405,1.20437278,111100.0,111090.0,0.8355915]
[1752148709504,1.12352551,111100.0,111090.0,0.8355915]
[1752148711408,0.76272551,111100.0,111090.0,0.8355915]
[1752148712605,0.76270986,111100.0,111090.0,0.8355915]
[1752148712804,0.28108566,111100.0,111090.0,0.8355915]
[1752148713003,0.76270986,111100.0,111090.0,0.8355915]
[1752148714607,1.12350986,111100.0,111090.0,0.8355915]
[1752148720709,0.76270986,111100.0,111090.0,0.8355915]
[1752148720905,0.28108566,111100.0,111090.0,0.8355915]
[1752148721106,0.52189776,111100.0,111090.0,1.0764036]
[1752148721407,0.52189776,111100.0,111090.0,0.8355915]
[1752148721608,0.76270986,111100.0,111090.0,1.0764036]
[1752148730915,0.28108566,111100.0,111090.0,1.0764036]
[1752148731118,0.52189776,111100.0,111090.0,1.1082036]
[1752148732810,0.28108566,111100.0,111090.0,1.1082036]
[1752148733010,0.52189776,111100.0,111090.0,1.1082036]
[1752148734318,0.52189776,111100.0,111090.0,0.8673915]
[1752148734518,0.76270986,111100.0,111090.0,1.1082036]
[1752148735712,0.76270986,111100.0,111090.0,1.1392036]
[1752148736517,0.76270986,111100.0,111090.0,0.8983915]
[1752148739819,0.76270986,111100.0,111090.0,0.91527521]
[1752148743616,0.76270986,111100.0,111090.0,0.8983915]
[1752148743821,0.76270986,111100.0,111090.0,0.91540953]